fUSD/lending_fUSD_20251129
["ID","MTS","AMOUNT","RATE_DAILY","PERIOD"]
[395100350,1764427844782,-176.07,0.00016712,2]
[395100351,1764427844791,-151.0,0.0001673,2]
[395100352,1764427844801,-1516.0,0.00016816,2]
[395100353,1764427844811,-190.08337603,0.00016825,2]
[395100354,1764427844824,-1496.79096699,0.00016835,2]
[395100355,1764427844833,-300.0,0.0001692,2]
[395100356,1764427844843,-334.5472959,0.0001692,2]
[395100357,1764427844852,-553.64373807,0.0001692,2]
[395100358,1764427844862,-500.0,0.0001692,2]
[395100359,1764427844872,-500.0,0.0001692,2]
[395100360,1764427844882,-500.0,0.0001692,2]
[395100361,1764427844891,-250.0,0.0001692,2]
[395100362,1764427844901,-500.0,0.0001692,2]
[395100363,1764427844910,-250.0,0.0001692,2]
[395100364,1764427844919,-500.0,0.0001692,2]
[395100365,1764427844929,-500.0,0.0001692,2]
[395100366,1764427844938,-500.0,0.0001692,2]
[395100367,1764427844947,-250.0,0.0001692,2]
[395100368,1764427844957,-500.0,0.0001692,2]
[395100369,1764427844966,-500.0,0.0001692,2]
[395100370,1764427844975,-500.0,0.0001692,2]
[395100371,1764427844984,-250.0,0.0001692,2]
[395100372,1764427844994,-500.0,0.0001692,2]
[395100373,1764427845003,-500.0,0.0001692,2]
[395100374,1764427845013,-250.0,0.0001692,2]
[395100375,1764427845022,-500.0,0.0001692,2]
[395100376,1764427845032,-500.0,0.0001692,2]
[395100377,1764427845042,-250.0,0.0001692,2]
[395100378,1764427845052,-500.0,0.0001692,2]
[395100379,1764427845061,-500.0,0.0001692,2]
[395100380,1764427845071,-250.0,0.0001692,2]
[395100381,1764427845080,-500.0,0.0001692,2]
[395100382,1764427845089,-500.0,0.0001692,2]
[395100383,1764427845098,-500.0,0.0001692,2]
[395100384,1764427845107,-250.0,0.0001692,2]
[395100385,1764427845116,-500.0,0.0001692,2]
[395100386,1764427845125,-500.0,0.0001692,2]
[395100387,1764427845135,-500.0,0.0001692,2]
[395100388,1764427845144,-250.0,0.0001692,2]
[395100389,1764427845153,-500.0,0.0001692,2]
[395100390,1764427845163,-500.0,0.0001692,2]
[395100391,1764427845172,-250.0,0.0001692,2]
[395100392,1764427845181,-500.0,0.0001692,2]
[395100393,1764427845190,-500.0,0.0001692,2]
[395100394,1764427845199,-250.0,0.0001692,2]
[395100395,1764427845208,-500.0,0.0001692,2]
[395100396,1764427845217,-267.46074303,0.0001692,2]
[395100397,1764427845227,-500.0,0.0001692,2]
[395100398,1764427845236,-250.0,0.0001692,2]
[395100399,1764427845246,-500.0,0.0001692,2]
[395100400,1764427845255,-500.0,0.0001692,2]
[395100401,1764427845264,-500.0,0.0001692,2]
[395100402,1764427845274,-500.0,0.0001692,2]
[395100403,1764427845283,-500.0,0.0001692,2]
[395100404,1764427845292,-500.0,0.0001692,2]
[395100405,1764427845301,-500.0,0.0001692,2]
[395100406,1764427845310,-500.0,0.0001692,2]
[395100407,1764427845320,-500.0,0.0001692,2]
[395100408,1764427845329,-500.0,0.0001692,2]
[395100409,1764427845339,-500.0,0.0001692,2]
[395100410,1764427845348,-500.0,0.0001692,2]
[395100411,1764427845357,-500.0,0.0001692,2]
[395100412,1764427845366,-500.0,0.0001692,2]
[395100413,1764427845375,-500.0,0.0001692,2]
[395100414,1764427845385,-500.0,0.0001692,2]
[395100415,1764427845394,-500.0,0.0001692,2]
[395100416,1764427845404,-500.0,0.0001692,2]
[395100417,1764427845413,-500.0,0.0001692,2]
[395100418,1764427845422,-500.0,0.0001692,2]
[395100419,1764427845431,-500.0,0.0001692,2]
[395100420,1764427845440,-500.0,0.0001692,2]
[395100421,1764427845449,-579.71658743,0.0001692,2]
[395100422,1764427845457,-578.20924308,0.0001692,2]
[395100423,1764427845466,-151.0,0.0001692,2]
[395100424,1764427845476,-151.0,0.0001692,2]
[395100425,1764427845485,-1000.0,0.0001692,2]
[395100426,1764427845494,-200.0,0.0001692,2]
[395100427,1764427845504,-627.15,0.0001692,2]
[395100428,1764427845514,-262.00651506,0.00016969,7]
[395100429,1764427845523,-500.0,0.00016973,2]
[395100430,1764427845533,-501.72529391,0.00016973,2]
[395100431,1764427845542,-500.0,0.00016973,2]
[395100432,1764427845551,-501.27816058,0.00016973,2]
[395100433,1764427845561,-500.0,0.00016973,2]
[395100434,1764427845570,-500.0,0.00016973,2]
[395100435,1764427845580,-329.62012355,0.00016973,2]
[395100436,1764427845588,-500.0,0.00016973,2]
[395100437,1764427845597,-500.0,0.00016973,2]
[395100438,1764427845606,-557.4345573,0.00016973,2]
[395100439,1764427845615,-500.0,0.00016973,2]
[395100440,1764427845624,-500.0,0.00016973,2]
[395100441,1764427845634,-500.0,0.00016973,2]
[395100442,1764427845643,-501.70301498,0.00016973,2]
[395100443,1764427845650,-500.0,0.00016983,2]
[395100444,1764427845659,-1178.99078687,0.00016989,2]
[395100445,1764427845670,-2184.7787969,0.00016997,2]
[395100446,1764427845679,-24386.5525567,0.00016997,2]
[395100447,1764427845688,-2689.6208446,0.00016997,2]
[395100449,1764427845698,-2962.3683316,0.00016997,2]
[395100451,1764427845707,-168.3543057,0.00016997,2]
[395100452,1764427845718,-2725.9447788,0.00016997,2]
[395100453,1764427845728,-151.0,0.00016997,2]
[395100454,1764427845737,-394.01424542,0.00016999,2]
[395100456,1764427845746,-500.0,0.00016999,2]
[395100458,1764427845755,-500.274,0.00016999,2]
[395100459,1764427845764,-500.0,0.00016999,2]
[395100460,1764427845774,-291.27618921,0.00016999,2]
[395100461,1764427845783,-500.0,0.00016999,2]
[395100462,1764427845792,-477.0130093,0.00016999,2]
[395100463,1764427845801,-500.0,0.00016999,2]
[395100464,1764427845810,-500.0,0.00016999,2]
[395100465,1764427845819,-500.0,0.00016999,2]
[395100466,1764427845829,-180568.87084525,0.00017,2]
[395100467,1764427845838,-250.0,0.00017,2]
[395100468,1764427845847,-5490.83869842,0.00017,2]
[395100469,1764427845856,-7000.0,0.00017,2]
[395100470,1764427845865,-151.0,0.00017,2]
[395100471,1764427845875,-554.586815,0.00017,2]
[395100472,1764427845886,-151.0,0.00017,2]
[395100473,1764427845895,-554.586815,0.00017,2]
[395100474,1764427845905,-151.0,0.00017,2]
[395100475,1764427845914,-554.586815,0.00017,2]
[395100476,1764427845924,-554.586815,0.00017,2]
[395100477,1764427845933,-592.369674,0.00017,2]
[395100478,1764427845942,-592.369674,0.00017,2]
[395100479,1764427845951,-592.369674,0.00017,2]
[395100480,1764427845960,-592.369674,0.00017,2]
[395100481,1764427845969,-156.11302106,0.00017013,2]
[395100482,1764427845978,-316.0,0.00017058,2]
[395100483,1764427845989,-3919.5981367,0.00017067,2]
[395100484,1764427845998,-1500.0,0.00017068,2]
[395100485,1764427846007,-316.0,0.00017173,2]
[395100486,1764427846016,-627.15,0.00017194,2]
[395100487,1764427846026,-1516.0,0.00017212,2]
[395100488,1764427846035,-300.0,0.00017245,2]
[395100489,1764427846044,-316.0,0.00017258,2]
[395100490,1764427846054,-151.0,0.00017278,2]
[395100491,1764427846063,-316.0,0.00017278,2]
[395100492,1764427846072,-151.0,0.00017288,2]
[395100493,1764427846081,-151.0,0.00017288,2]
[395100494,1764427846090,-151.0,0.00017288,2]
[395100495,1764427846099,-151.0,0.00017288,2]
[395100496,1764427846109,-151.0,0.00017288,2]
[395100497,1764427846118,-151.0,0.00017288,2]
[395100498,1764427846127,-458.072187,0.00017288,2]
[395100499,1764427846136,-458.072187,0.00017288,2]
[395100500,1764427846145,-458.072187,0.00017288,2]
[395100501,1764427846154,-458.072187,0.00017288,2]
[395100502,1764427846163,-814.959456,0.00017288,2]
[395100503,1764427846173,-814.959456,0.00017288,2]
[395100504,1764427846182,-814.959456,0.00017288,2]
[395100505,1764427846191,-814.959456,0.00017288,2]
[395100506,1764427846200,-151.0,0.00017288,2]
[395100507,1764427846210,-1586.251219,0.00017288,2]
[395100508,1764427846219,-1586.251219,0.00017288,2]
[395100509,1764427846228,-151.0,0.00017288,2]
[395100510,1764427846238,-151.0,0.00017288,2]
[395100511,1764427846247,-1586.251219,0.00017288,2]
[395100512,1764427846256,-151.0,0.00017288,2]
[395100513,1764427846266,-1586.251219,0.00017288,2]
[395100515,1764427846275,-384.512153,0.00017288,2]
[395100516,1764427846286,-384.512153,0.00017288,2]
[395100517,1764427846295,-384.512153,0.00017288,2]
[395100518,1764427846306,-216.202409,0.00017288,2]
[395100519,1764427846315,-384.512153,0.00017288,2]
[395100520,1764427846325,-216.202409,0.00017288,2]
[395100521,1764427846334,-182.826416,0.00017288,2]
[395100522,1764427846343,-216.202409,0.00017288,2]
[395100523,1764427846352,-182.826416,0.00017288,2]
[395100524,1764427846362,-216.202409,0.00017288,2]
[395100525,1764427846370,-182.826416,0.00017288,2]
[395100526,1764427846380,-182.826416,0.00017288,2]
[395100527,1764427846388,-151.0,0.00017288,2]
[395100528,1764427846397,-32048.495662,0.00017288,2]
[395100529,1764427846406,-316.0,0.00017308,2]
[395100530,1764427846415,-316.0,0.00017313,2]
[395100531,1764427846424,-316.0,0.0001732,2]
[395100532,1764427846434,-1516.0,0.00017347,2]
[395100533,1764427846443,-316.0,0.00017387,2]
[395100534,1764427846453,-1516.0,0.00017398,2]
[395100535,1764427846462,-217.51,0.00017401,2]
[395100536,1764427846471,-316.0,0.00017441,2]
[395100537,1764427846480,-574.12855637,0.00017468,2]
[395100538,1764427846489,-1000.0,0.00017468,2]
[395100539,1764427846498,-627.15,0.00017468,2]
[395100540,1764427846507,-500.0,0.0001752,2]
[395100541,1764427846516,-1000.0,0.00017521,2]
[395100542,1764427846525,-1000.0,0.00017521,2]
[395100543,1764427846534,-506.78310506,0.00017521,2]
[395100544,1764427846543,-972.98196458,0.00017521,2]
[395100545,1764427846552,-1082.70813265,0.00017521,2]
[395100546,1764427846561,-154.359566,0.00017521,2]
[395100547,1764427846570,-262.505062,0.00017521,2]
[395100548,1764427846580,-262.505062,0.00017521,2]
[395100549,1764427846589,-151.0,0.00017521,2]
[395100550,1764427846599,-151.0,0.00017521,2]
[395100551,1764427846607,-151.0,0.00017521,2]
[395100552,1764427846617,-151.0,0.00017521,2]
[395100553,1764427846626,-151.0,0.00017521,2]
[395100554,1764427846635,-151.0,0.00017521,2]
[395100555,1764427846644,-151.0,0.00017521,2]
[395100556,1764427846653,-151.0,0.00017521,2]
[395100557,1764427846663,-285.061314,0.00017521,2]
[395100558,1764427846672,-277.365554,0.00017521,2]
[395100559,1764427846681,-285.061314,0.00017521,2]
[395100560,1764427846690,-277.365554,0.00017521,2]
[395100561,1764427846699,-285.061314,0.00017521,2]
[395100562,1764427846708,-277.365554,0.00017521,2]
[395100563,1764427846720,-285.061314,0.00017521,2]
[395100564,1764427846731,-277.365554,0.00017521,2]
[395100565,1764427846740,-162.191789,0.00017521,2]
[395100566,1764427846749,-151.0,0.00017521,2]
[395100567,1764427846758,-151.0,0.00017521,2]
[395100568,1764427846768,-151.0,0.00017521,2]
[395100569,1764427846777,-151.0,0.00017521,2]
[395100570,1764427846786,-151.0,0.00017521,2]
[395100571,1764427846796,-315.256833,0.00017521,2]
[395100572,1764427846806,-151.0,0.00017521,2]
[395100573,1764427846815,-151.0,0.00017521,2]
[395100574,1764427846825,-315.256833,0.00017521,2]
[395100575,1764427846834,-151.0,0.00017521,2]
[395100576,1764427846843,-151.0,0.00017521,2]
[395100577,1764427846854,-151.0,0.00017521,2]
[395100578,1764427846863,-151.0,0.00017521,2]
[395100579,1764427846873,-151.0,0.00017521,2]
[395100580,1764427846882,-315.256833,0.00017521,2]
[395100581,1764427846892,-315.256833,0.00017521,2]
[395100582,1764427846901,-174.255777,0.00017521,2]
[395100583,1764427846910,-174.255777,0.00017521,2]
[395100584,1764427846920,-174.255777,0.00017521,2]
[395100585,1764427846929,-174.255777,0.00017521,2]
[395100586,1764427846938,-151.0,0.00017521,2]
[395100587,1764427846947,-151.0,0.00017521,2]
[395100588,1764427846956,-151.0,0.00017521,2]
[395100589,1764427846965,-151.0,0.00017521,2]
[395100590,1764427846975,-151.0,0.00017521,2]
[395100591,1764427846985,-151.0,0.00017521,2]
[395100592,1764427846995,-151.0,0.00017521,2]
[395100593,1764427847004,-316.0,0.00017561,2]
[395100594,1764427847013,-2000.0,0.00017616,2]
[395100595,1764427847022,-316.0,0.00017674,2]
[395100596,1764427847032,-874.5805599,0.00017699,2]
[395100597,1764427847040,-316.0,0.00017699,2]
[395100598,1764427847049,-316.0,0.00017733,2]
[395100599,1764427847058,-627.15,0.00017742,2]
[395100600,1764427847067,-27167.93,0.00017772,2]
[395100601,1764427847076,-1516.0,0.00017782,2]
[395100602,1764427847087,-316.0,0.00017784,2]
[395100603,1764427847096,-151.0,0.00017826,2]
[395100604,1764427847105,-316.0,0.00017868,2]
[395100605,1764427847114,-1516.0,0.00017897,2]
[395100606,1764427847123,-587.0,0.00017923,2]
[395100607,1764427847133,-1516.0,0.00017962,2]
[395100608,1764427847142,-7150.9859695,0.00017969,2]
[395100609,1764427847151,-1004.265,0.00017999,2]
[395100610,1764427847160,-1032.8474,0.00017999,2]
[395100611,1764427847169,-595.37131296,0.00018016,2]
[395100612,1764427847178,-1000.0,0.00018016,2]
[395100613,1764427847187,-627.15,0.00018016,2]
[395100614,1764427847196,-1000.0,0.00018016,2]
[395100615,1764427847205,-384.9832306,0.00018068,2]
[395100616,1764427847214,-264.8921404,0.00018074,2]
[395100617,1764427847223,-1000.0,0.00018082,2]
[395100618,1764427847232,-151.0,0.00018095,2]
[395100619,1764427847241,-151.0,0.00018095,2]
[395100620,1764427847250,-151.0,0.00018095,2]
[395100621,1764427847259,-151.0,0.00018095,2]
[395100622,1764427847268,-161.252309,0.00018095,2]
[395100623,1764427847277,-151.0,0.00018095,2]
[395100624,1764427847286,-157.678468,0.00018095,2]
[395100625,1764427847295,-151.0,0.00018095,2]
[395100626,1764427847304,-151.0,0.00018095,2]
[395100627,1764427847313,-151.0,0.00018095,2]
[395100628,1764427847322,-1729.81570721,0.00018095,2]
[395100629,1764427847331,-2351.0,0.00018104,2]
[395100630,1764427847340,-1279.42621957,0.00018164,2]
[395100631,1764427847349,-150.0,0.00018171,5]
[395100632,1764427847358,-150.0,0.00018171,5]
[395100633,1764427847367,-217.51,0.00018229,2]
[395100634,1764427847653,-199.86,0.00018253,2]
[395100635,1764427847664,-311.1,0.00018289,2]
[395100636,1764427847674,-346.92554585,0.00018289,2]
[395100637,1764427847684,-277.35679052,0.00018289,2]
[395100638,1764427847693,-627.18,0.0001829,2]
[395100639,1764427847703,-17253.21632027,0.00018307,2]
[395100640,1764427847712,-24029.41471509,0.00018311,2]
[395100641,1764427847725,-151.0,0.00018374,2]
[395100642,1764427847736,-610.0,0.00018503,2]
[395100643,1764427847746,-3441.0,0.00018503,2]
[395100644,1764427847755,-1603.0,0.00018503,2]
[395100645,1764427847765,-1321.0,0.00018503,2]
[395100646,1764427847775,-1258.0,0.00018503,2]
[395100647,1764427847786,-640.0,0.00018503,2]
[395100648,1764427847795,-221.0,0.00018503,2]
[395100649,1764427847806,-250.0,0.00018503,2]
[395100650,1764427847815,-2718.0,0.00018503,2]
[395100651,1764427847824,-562.0,0.00018503,2]
[395100652,1764427847834,-150.0,0.00018503,2]
[395100653,1764427847844,-218.50911301,0.00018564,2]
[395100654,1764427847854,-1000.0,0.00018564,2]
[395100655,1764427847868,-250.0,0.00018615,2]
[395100656,1764427847878,-300.0,0.00018615,2]
[395100657,1764427847888,-931.76684025,0.00018756,2]
[395100658,1764427847898,-1000.0,0.0001876,2]
[395100659,1764427847908,-288.31928454,0.00018762,8]
[395100660,1764427847919,-150.74,0.000188,2]
[395100661,1764427847928,-150.74,0.000188,2]
[395100662,1764427847938,-150.74,0.000188,2]
[395100663,1764427847947,-150.74,0.000188,2]
[395100664,1764427847957,-150.74,0.000188,2]
[395100665,1764427847967,-150.74,0.000188,2]
[395100666,1764427847976,-150.74,0.000188,2]
[395100667,1764427847985,-151.0,0.00018922,2]
[395100668,1764427847997,-500.0,0.00018999,2]
[395100669,1764427848006,-32138.72631147,0.00019,2]
[395100670,1764427848015,-915.178175,0.00019,2]
[395100671,1764427848024,-5135.56444467,0.00019,2]
[395100672,1764427848034,-300.0,0.00019,2]
[395100673,1764427848044,-7000.0,0.00019,2]
[395100674,1764427848056,-217.51,0.00019058,2]
[395100675,1764427848066,-202.04411004,0.00019082,2]
[395100676,1764427848075,-1000.0,0.00019112,2]
[395100677,1764427848085,-238.53,0.00019146,2]
[395100678,1764427848094,-150.74,0.00019168,2]
[395100679,1764427848104,-151.0,0.00019175,2]
[395100680,1764427848114,-831.0,0.00019178,2]
[395100681,1764427848123,-831.0,0.00019178,2]
[395100682,1764427848133,-500.0,0.00019178,2]
[395100683,1764427848142,-500.0,0.00019178,2]
[395100684,1764427848152,-500.0,0.00019178,2]
[395100685,1764427848162,-151.0,0.00019178,2]
[395100686,1764427848171,-151.0,0.00019178,2]
[395100687,1764427848180,-151.0,0.00019178,2]
[395100688,1764427848190,-1249.0,0.00019178,2]
[395100689,1764427848199,-151.0,0.00019178,2]
[395100690,1764427848208,-831.0,0.00019178,2]
[395100691,1764427848218,-831.0,0.00019178,2]
[395100692,1764427848227,-831.0,0.00019178,2]
[395100693,1764427848236,-151.0,0.00019178,2]
[395100694,1764427848248,-151.0,0.00019178,2]
[395100695,1764427848258,-151.0,0.00019178,2]
[395100696,1764427848267,-1249.0,0.00019178,2]
[395100697,1764427848277,-151.0,0.00019178,2]
[395100698,1764427848286,-831.0,0.00019178,2]
[395100699,1764427848295,-1249.0,0.00019178,2]
[395100700,1764427848305,-151.0,0.00019178,2]
[395100701,1764427848314,-717.79196975,0.00019178,2]
[395100702,1764427848323,-1249.0,0.00019178,2]
[395100703,1764427848333,-151.0,0.00019178,2]
[395100704,1764427848342,-1249.0,0.00019178,2]
[395100705,1764427848351,-1249.0,0.00019178,2]
[395100706,1764427848360,-1249.0,0.00019178,2]
[395100707,1764427848369,-1249.0,0.00019178,2]
[395100708,1764427848379,-1249.0,0.00019178,2]
[395100709,1764427848388,-1249.0,0.00019178,2]
[395100710,1764427848397,-153.0,0.00019178,2]
[395100711,1764427848407,-1249.0,0.00019178,2]
[395100712,1764427848416,-153.0,0.00019178,2]
[395100713,1764427848426,-153.0,0.00019178,2]
[395100714,1764427848435,-1249.0,0.00019178,2]
[395100715,1764427848446,-1249.0,0.00019178,2]
[395100716,1764427848455,-153.0,0.00019178,2]
[395100717,1764427848465,-1249.0,0.00019178,2]
[395100718,1764427848474,-1249.0,0.00019178,2]
[395100719,1764427848483,-153.0,0.00019178,2]
[395100720,1764427848493,-153.0,0.00019178,2]
[395100721,1764427848502,-153.0,0.00019178,2]
[395100722,1764427848511,-151.0,0.00019178,2]
[395100723,1764427848520,-151.0,0.00019178,2]
[395100724,1764427848529,-151.0,0.00019178,2]
[395100725,1764427848539,-1190.262288,0.00019178,2]
[395100726,1764427848548,-1190.262288,0.00019178,2]
[395100727,1764427848557,-1190.262288,0.00019178,2]
[395100728,1764427848567,-1190.262288,0.00019178,2]
[395100729,1764427848576,-151.0,0.00019178,2]
[395100730,1764427848586,-151.0,0.00019178,2]
[395100731,1764427848595,-151.0,0.00019178,2]
[395100732,1764427848604,-151.0,0.00019178,2]
[395100733,1764427848614,-303.551281,0.00019178,2]
[395100734,1764427848623,-786.700385,0.00019178,2]
[395100735,1764427848633,-303.551281,0.00019178,2]
[395100736,1764427848643,-786.700385,0.00019178,2]
[395100737,1764427848654,-303.551281,0.00019178,2]
[395100738,1764427848664,-345.568016,0.00019178,2]
[395100739,1764427848673,-786.700385,0.00019178,2]
[395100740,1764427848684,-303.551281,0.00019178,2]
[395100741,1764427848695,-345.568016,0.00019178,2]
[395100742,1764427848705,-786.700385,0.00019178,2]
[395100743,1764427848716,-151.0,0.00019178,2]
[395100744,1764427848729,-151.0,0.00019178,2]
[395100745,1764427848739,-345.568016,0.00019178,2]
[395100746,1764427848749,-345.568016,0.00019178,2]
[395100747,1764427848759,-151.0,0.00019178,2]
[395100748,1764427848768,-151.0,0.00019178,2]
[395100749,1764427848777,-2887.785338,0.00019178,2]
[395100750,1764427848788,-2887.785338,0.00019178,2]
[395100751,1764427848797,-2887.785338,0.00019178,2]
[395100752,1764427848807,-2887.785338,0.00019178,2]
[395100753,1764427848817,-151.0,0.00019178,2]
[395100754,1764427848834,-151.0,0.00019178,2]
[395100755,1764427848848,-151.0,0.00019178,2]
[395100756,1764427848858,-151.0,0.00019178,2]
[395100757,1764427848869,-151.0,0.00019178,2]
[395100758,1764427848879,-151.0,0.00019178,2]
[395100759,1764427848888,-158.350754,0.00019178,2]
[395100760,1764427848899,-158.350754,0.00019178,2]
[395100761,1764427848908,-158.350754,0.00019178,2]
[395100762,1764427848919,-158.350754,0.00019178,2]
[395100763,1764427848928,-340.295419,0.00019178,2]
[395100764,1764427848938,-1921.478575,0.00019178,2]
[395100765,1764427848947,-340.295419,0.00019178,2]
[395100766,1764427848957,-1921.478575,0.00019178,2]
[395100767,1764427848967,-340.295419,0.00019178,2]
[395100768,1764427848977,-1921.478575,0.00019178,2]
[395100769,1764427848986,-340.295419,0.00019178,2]
[395100770,1764427848996,-1921.478575,0.00019178,2]
[395100771,1764427849005,-151.0,0.00019178,2]
[395100772,1764427849016,-372.503113,0.00019178,2]
[395100773,1764427849025,-372.503113,0.00019178,2]
[395100774,1764427849035,-151.0,0.00019178,2]
[395100775,1764427849044,-279.53315,0.00019178,2]
[395100776,1764427849054,-372.503113,0.00019178,2]
[395100777,1764427849064,-151.0,0.00019178,2]
[395100778,1764427849074,-151.0,0.00019178,2]
[395100779,1764427849083,-151.0,0.00019178,2]
[395100780,1764427849093,-372.503113,0.00019178,2]
[395100781,1764427849103,-279.53315,0.00019178,2]
[395100782,1764427849113,-254.338841,0.00019178,2]
[395100783,1764427849123,-151.0,0.00019178,2]
[395100784,1764427849134,-279.53315,0.00019178,2]
[395100785,1764427849145,-1281.534657,0.00019178,2]
[395100786,1764427849155,-444.344971,0.00019178,2]
[395100787,1764427849165,-1022.076448,0.00019178,2]
[395100788,1764427849175,-279.53315,0.00019178,2]
[395100789,1764427849184,-1281.534657,0.00019178,2]
[395100790,1764427849194,-444.344971,0.00019178,2]
[395100791,1764427849203,-1022.076448,0.00019178,2]
[395100792,1764427849213,-1022.076448,0.00019178,2]
[395100793,1764427849223,-444.344971,0.00019178,2]
[395100794,1764427849233,-1281.534657,0.00019178,2]
[395100795,1764427849243,-151.0,0.00019178,2]
[395100796,1764427849252,-1022.076448,0.00019178,2]
[395100797,1764427849262,-1281.534657,0.00019178,2]
[395100798,1764427849271,-151.0,0.00019178,2]
[395100799,1764427849281,-444.344971,0.00019178,2]
[395100800,1764427849291,-151.0,0.00019178,2]
[395100801,1764427849301,-151.0,0.00019178,2]
[395100802,1764427849310,-151.0,0.00019178,2]
[395100803,1764427849321,-157.0,0.00019178,2]
[395100804,1764427849331,-151.0,0.00019178,2]
[395100805,1764427849341,-151.0,0.00019178,2]
[395100806,1764427849351,-165.117421,0.00019178,2]
[395100807,1764427849360,-151.0,0.00019178,2]
[395100808,1764427849370,-151.0,0.00019178,2]
[395100809,1764427849379,-152.0,0.00019178,2]
[395100810,1764427849389,-152.0,0.00019178,2]
[395100811,1764427849399,-152.0,0.00019178,2]
[395100812,1764427849408,-152.0,0.00019178,2]
[395100813,1764427849418,-152.0,0.00019178,2]
[395100814,1764427849427,-152.0,0.00019178,2]
[395100815,1764427849437,-152.0,0.00019178,2]
[395100816,1764427849446,-152.0,0.00019178,2]
[395100817,1764427849456,-152.0,0.00019178,2]
[395100818,1764427849467,-151.0,0.00019178,2]
[395100819,1764427849478,-152.0,0.00019178,2]
[395100820,1764427849487,-654.42245,0.00019178,2]
[395100821,1764427849496,-151.0,0.00019178,2]
[395100822,1764427849506,-152.0,0.00019178,2]
[395100823,1764427849516,-152.0,0.00019178,2]
[395100824,1764427849526,-654.42245,0.00019178,2]
[395100825,1764427849535,-152.0,0.00019178,2]
[395100826,1764427849545,-152.0,0.00019178,2]
[395100827,1764427849555,-152.0,0.00019178,2]
[395100828,1764427849564,-152.0,0.00019178,2]
[395100829,1764427849574,-654.42245,0.00019178,2]
[395100830,1764427849585,-152.0,0.00019178,2]
[395100831,1764427849596,-152.0,0.00019178,2]
[395100832,1764427849606,-654.42245,0.00019178,2]
[395100833,1764427849615,-152.0,0.00019178,2]
[395100834,1764427849625,-152.0,0.00019178,2]
[395100835,1764427849634,-269.2477,0.00019178,2]
[395100836,1764427849644,-269.2477,0.00019178,2]
[395100837,1764427849654,-151.0,0.00019178,2]
[395100838,1764427849663,-269.2477,0.00019178,2]
[395100839,1764427849673,-269.2477,0.00019178,2]
[395100840,1764427849683,-184.488376,0.00019178,2]
[395100841,1764427849693,-151.0,0.00019178,2]
[395100842,1764427849703,-151.0,0.00019178,2]
[395100843,1764427849714,-554.586815,0.00019178,2]
[395100844,1764427849734,-554.586815,0.00019178,2]
[395100845,1764427849751,-554.586815,0.00019178,2]
[395100846,1764427849765,-554.586815,0.00019178,2]
[395100847,1764427849775,-592.369674,0.00019178,2]
[395100848,1764427849787,-592.369674,0.00019178,2]
[395100849,1764427849802,-592.369674,0.00019178,2]
[395100850,1764427849812,-592.369674,0.00019178,2]
[395100851,1764427849822,-151.0,0.00019178,2]
[395100852,1764427849832,-151.0,0.00019178,2]
[395100853,1764427849842,-156.759686,0.00019178,2]
[395100854,1764427849851,-151.0,0.00019178,2]